fUSD/lending_fUSD_20250109
["ID","MTS","AMOUNT","RATE_DAILY","PERIOD"]
[348337446,1736452246187,-500.0,9.859e-05,2]
[348337447,1736452246200,-807.87,9.859e-05,2]
[348337448,1736452246212,-500.0,9.859e-05,2]
[348337449,1736452246222,-500.0,9.859e-05,2]
[348337450,1736452246232,-670.21,9.859e-05,2]
[348337451,1736452246241,-500.0,9.859e-05,2]
[348337452,1736452246251,-500.0,9.859e-05,2]
[348337453,1736452246260,-500.0,9.859e-05,2]
[348337454,1736452246270,-500.0,9.859e-05,2]
[348337455,1736452246279,-500.0,9.859e-05,2]
[348337456,1736452246289,-754.95,9.859e-05,2]
[348337457,1736452246298,-521.33,9.859e-05,2]
[348337458,1736452246307,-736.38,9.859e-05,2]
[348337459,1736452246316,-503.55,9.859e-05,2]
[348337460,1736452246326,-500.0,9.859e-05,2]
[348337461,1736452246335,-500.0,9.859e-05,2]
[348337462,1736452246345,-500.0,9.859e-05,2]
[348337463,1736452246354,-1124.2,9.859e-05,2]
[348337464,1736452246363,-500.0,9.859e-05,2]
[348337465,1736452246374,-500.0,9.859e-05,2]
[348337466,1736452246388,-500.0,9.859e-05,2]
[348337467,1736452246398,-500.0,9.859e-05,2]
[348337468,1736452246408,-902.94,9.859e-05,2]
[348337469,1736452246418,-500.0,9.859e-05,2]
[348337470,1736452246428,-500.0,9.859e-05,2]
[348337471,1736452246438,-500.0,9.859e-05,2]
[348337472,1736452246447,-587.63,9.859e-05,2]
[348337473,1736452246457,-500.0,9.859e-05,2]
[348337474,1736452246467,-500.0,9.859e-05,2]
[348337475,1736452246477,-867.19,9.859e-05,2]
[348337476,1736452246487,-500.0,9.859e-05,2]
[348337477,1736452246496,-500.0,9.859e-05,2]
[348337478,1736452246506,-920.39,9.859e-05,2]
[348337479,1736452246516,-500.0,9.859e-05,2]
[348337480,1736452246526,-518.32,9.859e-05,2]
[348337481,1736452246535,-500.0,9.859e-05,2]
[348337482,1736452246545,-735.51,9.859e-05,2]
[348337483,1736452246554,-500.0,9.859e-05,2]
[348337484,1736452246563,-500.0,9.859e-05,2]
[348337485,1736452246573,-780.07,9.859e-05,2]
[348337486,1736452246583,-578.67869922,9.859e-05,2]
[348337487,1736452246592,-500.0,9.859e-05,2]
[348337488,1736452246601,-914.82,9.859e-05,2]
[348337489,1736452246611,-829.11,9.859e-05,2]
[348337491,1736452246620,-211.73284021,9.859e-05,2]
[348337493,1736452246634,-500.0,9.859e-05,2]
[348337494,1736452246647,-500.0,9.859e-05,2]
[348337496,1736452246656,-500.0,9.859e-05,2]
[348337498,1736452246666,-662.05,9.859e-05,2]
[348337500,1736452246675,-793.89,9.859e-05,2]
[348337502,1736452246684,-912.38,9.859e-05,2]
[348337504,1736452246694,-500.0,9.859e-05,2]
[348337506,1736452246703,-541.9,9.859e-05,2]
[348337508,1736452246712,-500.0,9.859e-05,2]
[348337510,1736452246723,-500.0,9.859e-05,2]
[348337512,1736452246734,-736.08,9.859e-05,2]
[348337514,1736452246743,-672.36,9.859e-05,2]
[348337517,1736452246753,-500.0,9.859e-05,2]
[348337518,1736452246763,-517.95,9.859e-05,2]
[348337520,1736452246773,-1723.23,9.859e-05,2]
[348337522,1736452246782,-500.0,9.859e-05,2]
[348337525,1736452246791,-500.0,9.859e-05,2]
[348337526,1736452246800,-678.09,9.859e-05,2]
[348337528,1736452246810,-500.0,9.859e-05,2]
[348337529,1736452246819,-500.0,9.859e-05,2]
[348337531,1736452246829,-500.0,9.859e-05,2]
[348337533,1736452246838,-3731.48,9.859e-05,2]
[348337535,1736452246848,-517.99,9.859e-05,2]
[348337537,1736452246858,-811.81,9.859e-05,2]
[348337539,1736452246867,-2520.42,9.859e-05,2]
[348337541,1736452246876,-557.27,9.859e-05,2]
[348337543,1736452246890,-754.07,9.859e-05,2]
[348337545,1736452246899,-788.71,9.859e-05,2]
[348337547,1736452246908,-609.41,9.859e-05,2]
[348337549,1736452246917,-2551.06,9.859e-05,2]
[348337551,1736452246926,-860.65,9.859e-05,2]
[348337553,1736452246936,-558.98,9.859e-05,2]
[348337555,1736452246945,-500.0,9.859e-05,2]
[348337557,1736452246956,-500.0,9.859e-05,2]
[348337559,1736452246966,-734.33,9.859e-05,2]
[348337561,1736452246975,-500.0,9.859e-05,2]
[348337563,1736452246984,-500.0,9.859e-05,2]
[348337565,1736452246994,-815.09,9.859e-05,2]
[348337567,1736452247003,-725.9,9.859e-05,2]
[348337569,1736452247011,-500.0,9.859e-05,2]
[348337571,1736452247020,-500.0,9.859e-05,2]
[348337573,1736452247029,-778.08,9.859e-05,2]
[348337575,1736452247038,-885.06,9.859e-05,2]
[348337577,1736452247048,-500.0,9.859e-05,2]
[348337579,1736452247057,-500.0,9.859e-05,2]
[348337581,1736452247067,-1292.34,9.86e-05,2]
[348337583,1736452247077,-1496.16,9.86e-05,2]
[348337585,1736452247086,-2843.83,9.86e-05,2]
[348337586,1736452247096,-1414.28,9.86e-05,2]
[348337588,1736452247106,-1683.68,9.86e-05,2]
[348337590,1736452247115,-1073.49,9.86e-05,2]
[348337592,1736452247125,-1523.64,9.86e-05,2]
[348337594,1736452247135,-500.0,9.86e-05,2]
[348337596,1736452247145,-826.02,9.86e-05,2]
[348337598,1736452247154,-1564.43,9.86e-05,2]
[348337600,1736452247163,-749.63,9.86e-05,2]
[348337602,1736452247172,-553.68,9.86e-05,2]
[348337604,1736452247182,-642.35,9.86e-05,2]
[348337606,1736452247191,-500.0,9.86e-05,2]
[348337608,1736452247200,-1144.41,9.86e-05,2]
[348337610,1736452247210,-619.86,9.86e-05,2]
[348337612,1736452247220,-1686.5,9.86e-05,2]
[348337614,1736452247230,-981.19,9.86e-05,2]
[348337616,1736452247240,-1242.1,9.86e-05,2]
[348337618,1736452247250,-1321.55,9.86e-05,2]
[348337620,1736452247259,-1620.6,9.86e-05,2]
[348337622,1736452247270,-1826.36,9.86e-05,2]
[348337624,1736452247278,-912.48,9.86e-05,2]
[348337626,1736452247288,-6378.05,9.86e-05,2]
[348337628,1736452247297,-708.89,9.862e-05,2]
[348337630,1736452247307,-889.52,9.862e-05,2]
[348337632,1736452247317,-2134.35,9.862e-05,2]
[348337634,1736452247326,-500.0,9.862e-05,2]
[348337636,1736452247336,-728.01,9.862e-05,2]
[348337638,1736452247346,-1071.52,9.862e-05,2]
[348337640,1736452247355,-519.04,9.862e-05,2]
[348337642,1736452247365,-1467.87,9.862e-05,2]
[348337644,1736452247375,-1000.0,9.862e-05,2]
[348337646,1736452247387,-1437.34,9.862e-05,2]
[348337648,1736452247396,-967.81,9.862e-05,2]
[348337650,1736452247406,-500.0,9.862e-05,2]
[348337652,1736452247416,-500.0,9.862e-05,2]
[348337654,1736452247426,-1948.57,9.862e-05,2]
[348337656,1736452247436,-150.0,9.87e-05,2]
[348337659,1736452247446,-150.0,9.875e-05,2]
[348337660,1736452247456,-150.0,9.875e-05,2]
[348337663,1736452247466,-150.0,9.884e-05,2]
[348337665,1736452247476,-150.0,9.913e-05,2]
[348337667,1736452247485,-150.0,9.93e-05,2]
[348337669,1736452247495,-150.0,9.957e-05,2]
[348337671,1736452247505,-200.0,9.96e-05,2]
[348337673,1736452247515,-7440.0,9.973e-05,2]
[348337675,1736452247524,-151.82638167,9.973e-05,2]
[348337677,1736452247534,-500.0,9.973e-05,2]
[348337679,1736452247543,-150.0,9.973e-05,2]
[348337681,1736452247553,-205.05361355,9.975e-05,2]
[348337683,1736452247562,-205.05361355,9.978e-05,2]
[348337684,1736452247571,-200.0,9.978e-05,2]
[348337686,1736452247581,-745.87039817,9.979e-05,2]
[348337688,1736452247590,-745.87039817,9.98e-05,2]
[348337690,1736452247600,-492.12867253,9.981e-05,2]
[348337692,1736452247610,-205.05361355,9.983e-05,2]
[348337694,1736452247620,-205.05361355,9.983e-05,2]
[348337697,1736452247629,-745.87039817,9.983e-05,2]
[348337698,1736452247646,-492.12867253,9.985e-05,2]
[348337700,1736452247656,-205.05361355,9.985e-05,2]
[348337701,1736452247666,-205.05361355,9.988e-05,2]
[348337702,1736452247676,-492.12867253,9.989e-05,2]
[348337703,1736452247687,-492.12867253,9.99e-05,2]
[348337704,1736452247696,-492.12867253,9.991e-05,2]
[348337705,1736452247705,-492.12867253,9.991e-05,2]
[348337706,1736452247714,-745.87039817,9.994e-05,2]
[348337707,1736452247724,-3697.824,9.994e-05,2]
[348337708,1736452247734,-152.027,9.994e-05,2]
[348337709,1736452247743,-1038.10045899,9.999e-05,3]
[348337710,1736452247752,-500.0,9.999e-05,2]
[348337711,1736452247762,-745.87039817,9.999e-05,2]
[348337712,1736452247771,-745.87039817,9.999e-05,2]
[348337713,1736452247781,-1150.0,0.0001,2]
[348337714,1736452247790,-229859.15269159,0.0001,5]
[348337715,1736452248842,-810.09756001,9.859e-05,2]
[348337716,1736452249106,835.67960349,7.822e-05,2]
[348337717,1736452256501,1500.0,7.704e-05,2]
[348337719,1736452991553,150.0,8.474e-05,2]
[348337720,1736453111399,150.0,7.871e-05,2]
[348337721,1736453116980,1000.0,8.354e-05,2]
[348337722,1736453222639,250.0,8.371e-05,2]
[348337723,1736453226092,678.76,8.219e-05,2]
[348337756,1736453435920,-150.0,8.538e-05,2]
[348337757,1736453435930,-150.0,8.542e-05,2]
[348337758,1736453435940,-150.0,8.607e-05,2]
[348337759,1736453435949,-150.0,8.663e-05,2]
[348337760,1736453435958,-150.0,8.681e-05,2]
[348337761,1736453435968,-150.0,8.724e-05,2]
[348337762,1736453435977,-604.0,8.746e-05,2]
[348337763,1736453435987,-150.0,8.777e-05,2]
[348337764,1736453435997,-150.0,8.864e-05,2]
[348337765,1736453436008,-150.0,8.926e-05,2]
[348337766,1736453436017,-150.0,8.976e-05,2]
[348337767,1736453436027,-300.0,8.984e-05,2]
[348337768,1736453436036,-150.0,8.985e-05,2]
[348337769,1736453436047,-3296.89,8.985e-05,2]
[348337770,1736453436057,-150.99,8.985e-05,2]
[348337771,1736453436067,-660.66,8.985e-05,2]
[348337772,1736453436077,-1378.76,8.985e-05,2]
[348337773,1736453436086,-1324.92,8.985e-05,2]
[348337774,1736453436096,-999.99,8.985e-05,2]
[348337775,1736453436106,-150.0,9e-05,2]
[348337776,1736453436115,-150.0,9e-05,2]
[348337777,1736453436127,-150.0,9e-05,2]
[348337778,1736453436136,-201.3641649,9e-05,2]
[348337779,1736453436146,-772.01,9.041e-05,2]
[348337780,1736453436155,-437.83,9.041e-05,2]
[348337781,1736453436165,-150.0,9.045e-05,2]
[348337782,1736453436174,-184.6,9.06e-05,2]
[348337783,1736453436184,-150.0,9.069e-05,2]
[348337784,1736453436194,-271.80919609,9.073e-05,2]
[348337785,1736453436203,-1200.0,9.09e-05,2]
[348337786,1736453436212,-500.0,9.09e-05,2]
[348337787,1736453436221,-150.0,9.164e-05,2]
[348337788,1736453436231,-150.0,9.243e-05,2]
[348337789,1736453436240,-150.0,9.25e-05,2]
[348337790,1736453436250,-1000.0,9.398e-05,2]
[348337791,1736453436259,-150.0,9.406e-05,2]
[348337792,1736453436268,-150.0,9.457e-05,2]
[348337793,1736453436278,-150.0,9.485e-05,2]
[348337794,1736453436287,-161.115,9.5e-05,2]
[348337795,1736453436296,-150.0,9.5e-05,2]
[348337796,1736453436306,-150.0,9.5e-05,2]
[348337797,1736453436316,-150.0,9.5e-05,2]
[348337798,1736453436326,-1500.0,9.529e-05,2]
[348337799,1736453436335,-150.0,9.633e-05,2]
[348337800,1736453436345,-711.68623832,9.656e-05,2]
[348337801,1736453436355,-150.0,9.678e-05,2]
[348337802,1736453436365,-150.0,9.75e-05,2]
[348337803,1736453436377,-2414.8469,9.757e-05,2]
[348337804,1736453436387,-2579.1322,9.757e-05,2]
[348337805,1736453436396,-2930.091,9.757e-05,2]
[348337806,1736453436406,-500.0,9.833e-05,2]
[348337807,1736453436415,-604.0,9.839e-05,2]
[348337808,1736453436425,-500.0,9.856e-05,2]
[348337809,1736453436434,-2596.84,9.856e-05,2]
[348337810,1736453436443,-3561.38,9.856e-05,2]
[348337812,1736453436454,-1831.61,9.856e-05,2]
[348337814,1736453436463,-522.76,9.856e-05,2]
[348337816,1736453436472,-1269.01,9.856e-05,2]
[348337818,1736453436481,-2884.99,9.856e-05,2]
[348337820,1736453436490,-500.0,9.856e-05,2]
[348337822,1736453436499,-737.81,9.856e-05,2]
[348337824,1736453436509,-500.0,9.856e-05,2]
[348337826,1736453436519,-871.25,9.856e-05,2]
[348337828,1736453436529,-816.63,9.856e-05,2]
[348337830,1736453436538,-500.0,9.856e-05,2]
[348337832,1736453436548,-500.0,9.856e-05,2]
[348337834,1736453436557,-532.18,9.856e-05,2]
[348337836,1736453436566,-401.37075738,9.856e-05,2]
[348337838,1736453436575,-500.0,9.856e-05,2]
[348337840,1736453436586,-500.0,9.856e-05,2]
[348337842,1736453436596,-500.2454744,9.857e-05,2]
[348337844,1736453436605,-500.0,9.857e-05,2]
[348337846,1736453436614,-501.3588766,9.857e-05,2]
[348337848,1736453436624,-500.0,9.857e-05,2]
[348337850,1736453436634,-500.93423195,9.857e-05,2]
[348337852,1736453436644,-500.0,9.857e-05,2]
[348337854,1736453436653,-500.0,9.857e-05,2]
[348337855,1736453436662,-500.0,9.857e-05,2]
[348337857,1736453436672,-501.61576991,9.857e-05,2]
[348337859,1736453436683,-500.0,9.857e-05,2]
[348337861,1736453436692,-500.0,9.857e-05,2]
[348337863,1736453436701,-500.0,9.857e-05,2]
[348337865,1736453436710,-500.0,9.857e-05,2]
[348337867,1736453436720,-500.0,9.857e-05,2]
[348337869,1736453436729,-504.23,9.857e-05,2]
[348337871,1736453436738,-500.0,9.857e-05,2]
[348337873,1736453436747,-500.0,9.857e-05,2]
[348337875,1736453436756,-500.0,9.857e-05,2]
[348337877,1736453436768,-500.0,9.857e-05,2]
[348337879,1736453436778,-500.0,9.857e-05,2]
[348337881,1736453436787,-500.0,9.857e-05,2]
[348337883,1736453436796,-500.0,9.857e-05,2]
[348337885,1736453436806,-500.0,9.857e-05,2]
[348337887,1736453436815,-500.0,9.857e-05,2]
[348337888,1736453436825,-500.0,9.857e-05,2]
[348337889,1736453436834,-502.46,9.857e-05,2]
[348337890,1736453436844,-502.50616433,9.857e-05,2]
[348337891,1736453436854,-500.0,9.857e-05,2]
[348337892,1736453436863,-500.0,9.857e-05,2]
[348337893,1736453436873,-804.36,9.857e-05,2]
[348337894,1736453436882,-804.36,9.857e-05,2]
[348337895,1736453436891,-500.0,9.857e-05,2]
[348337896,1736453436900,-500.0,9.857e-05,2]
[348337897,1736453436909,-500.0,9.857e-05,2]
[348337898,1736453436917,-500.0,9.857e-05,2]
[348337899,1736453436927,-500.0,9.857e-05,2]
[348337900,1736453436936,-503.11248164,9.857e-05,2]
[348337901,1736453436946,-500.0,9.857e-05,2]
[348337902,1736453436955,-500.0,9.857e-05,2]
[348337903,1736453436964,-500.0,9.857e-05,2]
[348337904,1736453436973,-500.0,9.857e-05,2]
[348337905,1736453436983,-628.85,9.857e-05,2]
[348337906,1736453436993,-500.0,9.857e-05,2]
[348337907,1736453437005,-500.0,9.857e-05,2]
[348337908,1736453437015,-500.0,9.857e-05,2]
[348337909,1736453437024,-500.0,9.857e-05,2]
[348337910,1736453437034,-500.0,9.857e-05,2]
[348337911,1736453437043,-500.0,9.857e-05,2]
[348337912,1736453437053,-500.0,9.857e-05,2]
[348337913,1736453437063,-500.0,9.857e-05,2]
[348337914,1736453437073,-500.0,9.857e-05,2]
[348337915,1736453437082,-739.92,9.857e-05,2]
[348337916,1736453437092,-500.0,9.857e-05,2]
[348337917,1736453437101,-500.0,9.857e-05,2]
[348337918,1736453437110,-500.0,9.857e-05,2]
[348337919,1736453437121,-621.12316191,9.857e-05,2]
[348337920,1736453437130,-500.0,9.857e-05,2]
[348337921,1736453437140,-527.79,9.857e-05,2]
[348337922,1736453437149,-500.0,9.857e-05,2]
[348337923,1736453437159,-500.0,9.857e-05,2]
[348337924,1736453437168,-500.0,9.857e-05,2]
[348337925,1736453437176,-510.94,9.857e-05,2]
[348337926,1736453437185,-500.0,9.857e-05,2]
[348337927,1736453437195,-500.0,9.857e-05,2]
[348337928,1736453437204,-478.24218409,9.857e-05,2]
[348337929,1736453437214,-500.0,9.857e-05,2]
[348337930,1736453437225,-500.0,9.857e-05,2]
[348337931,1736453437236,-500.0,9.857e-05,2]
[348337932,1736453437246,-500.0,9.857e-05,2]
[348337933,1736453437257,-1198.71,9.857e-05,2]
[348337934,1736453437268,-500.0,9.857e-05,2]
[348337935,1736453437278,-500.0,9.857e-05,2]
[348337936,1736453437287,-500.0,9.857e-05,2]
[348337937,1736453437297,-500.0,9.857e-05,2]
[348337938,1736453437308,-500.0,9.857e-05,2]
[348337939,1736453437318,-500.0,9.857e-05,2]
[348337940,1736453437328,-500.0,9.857e-05,2]
[348337941,1736453437337,-500.0,9.857e-05,2]
[348337942,1736453437346,-698.14,9.857e-05,2]
[348337943,1736453437356,-500.0,9.857e-05,2]
[348337944,1736453437365,-698.14,9.857e-05,2]
[348337945,1736453437381,-500.0,9.857e-05,2]
[348337946,1736453437390,-500.0,9.857e-05,2]
[348337947,1736453437399,-500.0,9.857e-05,2]
[348337948,1736453437409,-500.0,9.857e-05,2]
[348337949,1736453437419,-500.0,9.857e-05,2]
[348337950,1736453437428,-500.0,9.857e-05,2]
[348337951,1736453437437,-500.0,9.857e-05,2]
[348337952,1736453437447,-500.0,9.857e-05,2]
[348337953,1736453437456,-500.0,9.857e-05,2]
[348337954,1736453437467,-500.0,9.857e-05,2]
[348337955,1736453437476,-1767.65,9.857e-05,2]
[348337956,1736453437485,-500.0,9.857e-05,2]
[348337957,1736453437495,-500.0,9.857e-05,2]
[348337958,1736453437505,-500.0,9.857e-05,2]
[348337959,1736453437515,-500.0,9.857e-05,2]
[348337960,1736453437524,-500.0,9.857e-05,2]
[348337961,1736453437534,-1042.07,9.857e-05,2]
[348337962,1736453437543,-500.0,9.857e-05,2]
[348337963,1736453437553,-500.0,9.857e-05,2]
[348337964,1736453437562,-500.0,9.857e-05,2]
[348337965,1736453437571,-500.0,9.857e-05,2]
[348337966,1736453437581,-500.0,9.857e-05,2]
[348337967,1736453437590,-302.44632373,9.857e-05,2]
[348337968,1736453437600,-500.0,9.857e-05,2]
[348337969,1736453437609,-500.0,9.857e-05,2]
[348337970,1736453437619,-512.93,9.857e-05,2]
[348337971,1736453437631,-500.0,9.857e-05,2]
[348337972,1736453437640,-500.0,9.857e-05,2]
[348337973,1736453437650,-500.0,9.857e-05,2]
[348337974,1736453437659,-500.0,9.857e-05,2]
[348337975,1736453437668,-1292.24,9.857e-05,2]
[348337976,1736453437677,-500.0,9.857e-05,2]
[348337977,1736453437687,-500.0,9.857e-05,2]
[348337978,1736453437696,-500.0,9.857e-05,2]
[348337979,1736453437705,-500.0,9.857e-05,2]
[348337980,1736453437715,-500.0,9.857e-05,2]
[348337981,1736453437725,-500.0,9.857e-05,2]
[348337982,1736453437734,-500.0,9.857e-05,2]
[348337983,1736453437744,-501.67156521,9.857e-05,2]
[348337984,1736453437753,-500.0,9.857e-05,2]
[348337985,1736453437762,-500.0,9.857e-05,2]
[348337986,1736453437773,-500.0,9.857e-05,2]
[348337987,1736453437782,-500.0,9.857e-05,2]
[348337988,1736453437791,-500.0,9.857e-05,2]
[348337989,1736453437800,-500.0,9.857e-05,2]
[348337990,1736453437810,-500.0,9.857e-05,2]
[348337991,1736453437819,-500.0,9.857e-05,2]
[348337992,1736453437829,-500.0,9.857e-05,2]
[348337993,1736453437838,-500.0,9.857e-05,2]
[348337994,1736453437848,-500.0,9.857e-05,2]
[348337996,1736453437857,-500.0,9.857e-05,2]
[348337997,1736453437866,-500.0,9.857e-05,2]
[348337998,1736453437878,-278.4712197,9.857e-05,2]
[348337999,1736453437887,-500.0,9.857e-05,2]
[348338000,1736453437896,-500.0,9.857e-05,2]
[348338001,1736453437906,-500.0,9.857e-05,2]
[348338002,1736453437915,-1411.75,9.857e-05,2]
[348338003,1736453437924,-500.0,9.857e-05,2]
[348338004,1736453437934,-500.0,9.857e-05,2]
[348338005,1736453437943,-500.0,9.857e-05,2]
[348338006,1736453437953,-500.0,9.857e-05,2]
[348338007,1736453437963,-500.0,9.857e-05,2]
[348338008,1736453437973,-500.0,9.857e-05,2]
[348338009,1736453437983,-500.0,9.857e-05,2]
[348338011,1736453437992,-641.65,9.857e-05,2]
[348338013,1736453438003,-1113.38,9.857e-05,2]
[348338014,1736453438013,-500.0,9.857e-05,2]
[348338016,1736453438266,-500.0,9.857e-05,2]
[348338017,1736453438276,-500.0,9.857e-05,2]
[348338018,1736453438285,-500.0,9.857e-05,2]
[348338019,1736453438295,-500.0,9.857e-05,2]
[348338020,1736453438305,-500.0,9.857e-05,2]
[348338021,1736453438314,-500.0,9.857e-05,2]
[348338022,1736453438323,-500.0,9.857e-05,2]
[348338023,1736453438333,-500.0,9.857e-05,2]
[348338024,1736453438342,-500.0,9.857e-05,2]
[348338025,1736453438352,-500.0,9.857e-05,2]
[348338026,1736453438361,-309.02834514,9.857e-05,2]
[348338027,1736453438371,-1717.33,9.857e-05,2]
[348338028,1736453438384,-500.0,9.857e-05,2]
[348338029,1736453438394,-500.0,9.857e-05,2]
[348338030,1736453438403,-500.0,9.857e-05,2]
[348338031,1736453438414,-500.0,9.857e-05,2]
[348338032,1736453438424,-500.0,9.857e-05,2]
[348338033,1736453438434,-890.74,9.857e-05,2]
[348338034,1736453438443,-500.0,9.857e-05,2]
[348338036,1736453438452,-500.0,9.857e-05,2]
[348338038,1736453438462,-500.0,9.857e-05,2]
[348338040,1736453438471,-500.0,9.857e-05,2]
[348338042,1736453438480,-500.0,9.857e-05,2]
[348338043,1736453438490,-500.0,9.857e-05,2]
[348338044,1736453438499,-500.0,9.857e-05,2]
[348338045,1736453438509,-500.0,9.857e-05,2]
[348338046,1736453438519,-500.0,9.857e-05,2]
[348338047,1736453438529,-500.0,9.857e-05,2]
[348338048,1736453438538,-500.0,9.857e-05,2]
[348338049,1736453438548,-500.0,9.857e-05,2]
[348338051,1736453438557,-500.0,9.857e-05,2]
[348338053,1736453438567,-609.45,9.857e-05,2]
[348338055,1736453438576,-653.03,9.857e-05,2]
[348338057,1736453438585,-2022.36,9.857e-05,2]
[348338059,1736453438595,-500.0,9.857e-05,2]
[348338061,1736453438604,-500.0,9.857e-05,2]
[348338063,1736453438614,-500.0,9.857e-05,2]
[348338065,1736453438629,-652.86,9.857e-05,2]
[348338067,1736453438638,-500.0,9.857e-05,2]
[348338069,1736453438649,-500.0,9.857e-05,2]
[348338071,1736453438658,-500.0,9.857e-05,2]
[348338073,1736453438667,-500.0,9.857e-05,2]
[348338075,1736453438676,-500.0,9.857e-05,2]
[348338077,1736453438686,-6807.67,9.857e-05,2]
[348338079,1736453438695,-500.0,9.857e-05,2]
[348338081,1736453438704,-500.0,9.857e-05,2]
[348338083,1736453438713,-150.0,9.857e-05,2]
[348338085,1736453438723,-500.0,9.857e-05,2]
[348338087,1736453438732,-500.0,9.857e-05,2]
[348338089,1736453438741,-603.86,9.857e-05,2]
[348338091,1736453438750,-619.52,9.857e-05,2]
[348338093,1736453438759,-500.0,9.857e-05,2]
[348338095,1736453438769,-1790.77,9.857e-05,2]
[348338097,1736453438778,-869.77,9.857e-05,2]
[348338099,1736453438788,-500.0,9.857e-05,2]
[348338101,1736453438797,-500.0,9.857e-05,2]
[348338103,1736453438807,-500.0,9.857e-05,2]
[348338105,1736453438817,-500.0,9.857e-05,2]
[348338107,1736453438827,-500.0,9.857e-05,2]
[348338109,1736453438836,-500.0,9.857e-05,2]
[348338111,1736453438845,-500.0,9.857e-05,2]
[348338113,1736453438855,-500.0,9.857e-05,2]
[348338115,1736453438864,-500.0,9.857e-05,2]
[348338116,1736453438879,-500.0,9.857e-05,2]
[348338119,1736453438888,-500.0,9.857e-05,2]
[348338121,1736453438898,-500.0,9.857e-05,2]
[348338123,1736453438906,-725.22,9.857e-05,2]
[348338125,1736453438915,-555.88,9.857e-05,2]
[348338127,1736453438925,-562.87,9.857e-05,2]
[348338129,1736453438934,-500.0,9.857e-05,2]
[348338130,1736453438943,-500.0,9.857e-05,2]
[348338132,1736453438953,-737.84,9.857e-05,2]
[348338134,1736453438963,-500.0,9.857e-05,2]
[348338136,1736453438973,-500.0,9.857e-05,2]
[348338138,1736453438982,-500.0,9.857e-05,2]
[348338140,1736453438992,-503.23682538,9.857e-05,2]
[348338143,1736453439006,-500.0,9.857e-05,2]
[348338145,1736453439015,-500.0,9.857e-05,2]
[348338147,1736453439025,-1102.5,9.857e-05,2]
[348338149,1736453439034,-1008.57,9.857e-05,2]
[348338151,1736453439046,-500.0,9.857e-05,2]
[348338153,1736453439056,-500.0,9.857e-05,2]
[348338154,1736453439066,-500.0,9.857e-05,2]
[348338156,1736453439075,-500.0,9.857e-05,2]
[348338158,1736453439088,-500.0,9.857e-05,2]
[348338160,1736453439098,-500.0,9.857e-05,2]
[348338162,1736453439108,-500.0,9.857e-05,2]
[348338164,1736453439119,-500.0,9.857e-05,2]
[348338166,1736453439134,-500.0,9.857e-05,2]
[348338168,1736453439143,-513.0,9.857e-05,2]
[348338170,1736453439153,-735.51,9.857e-05,2]
[348338172,1736453439163,-500.0,9.857e-05,2]
[348338174,1736453439173,-500.0,9.857e-05,2]
[348338177,1736453439183,-500.0,9.857e-05,2]
[348338179,1736453439192,-500.0,9.857e-05,2]
[348338180,1736453439201,-500.0,9.857e-05,2]
[348338182,1736453439211,-500.0,9.857e-05,2]
[348338184,1736453439219,-651.63,9.857e-05,2]
[348338186,1736453439229,-1234.18,9.857e-05,2]
[348338188,1736453439238,-889.52,9.857e-05,2]
[348338190,1736453439248,-500.0,9.857e-05,2]
[348338193,1736453439265,-500.0,9.857e-05,2]
[348338194,1736453439278,-677.88,9.857e-05,2]
[348338195,1736453439287,-2746.19,9.857e-05,2]
[348338196,1736453439297,-817.5,9.857e-05,2]
[348338197,1736453439307,-3346.36,9.857e-05,2]
[348338198,1736453439317,-861.67,9.857e-05,2]
[348338199,1736453439327,-822.22,9.857e-05,2]
[348338200,1736453439336,-3250.07,9.857e-05,2]